[Event "92nd St. Petersburg-ch Men 2019"]
[Site "Sankt Petersburg"]
[Date "2019.04.06"]
[Round "6.1"]
[White "Lobanov, Sergei"]
[Black "Smirnov, Artem"]
[Result "1-0"]
[ECO "B38"]
[WhiteElo "2528"]
[BlackElo "2413"]
[Annotator "ChessBase"]
[PlyCount "129"]
[EventDate "2019.04.01"]
[EventType "tourn"]
[EventCountry "RUS"]
[SourceTitle "playchess.com"]
[Source "ChessBase"]
[SourceQuality "1"]
[TimeControl "40/5400+30:1800+30"]

1. e4 {[%emt 0:00:00]} c5 {[%emt 0:00:03]} 2. Nf3 {[%emt 0:00:00]} Nc6 {[%emt 0:00:04]} 3. d4 {[%emt 0:00:00]} cxd4 {[%emt 0:00:03]} 4. Nxd4 {[%emt 0:00:00]} g6 {[%emt 0:00:06]} 5. c4 {[%emt 0:00:12]} Bg7 {[%emt 0:00:16]} 6. Be3 {[%emt 0:00:06]} Nf6 {[%emt 0:00:26]} 7. Nc3 {[%emt 0:00:04]} O-O {[%emt 0:00:30]} 8. Be2 {[%emt 0:00:05]} d6 {[%emt 0:00:08]} 9. O-O {[%emt 0:00:15]} Bd7 {[%emt 0:00:12]} 10. Qd2 {[%emt 0:02:46]} Nxd4 {[%emt 0:00:14]} 11. Bxd4 {[%emt 0:00:04]} Bc6 {[%emt 0:00:04]} 12. f3 {[%emt 0:02:10]} Nd7 {[%emt 0:00:14]} 13. b4 {[%emt 0:05:56]} Bxd4+ {[%emt 0:05:16]} 14. Qxd4 {[%emt 0:00:01]} Qb6 {[%emt 0:00:55]} 15. Qxb6 {[%emt 0:00:06]} Nxb6 {[%emt 0:00:04]} 16. Rfc1 {[%emt 0:24:42]} Rfc8 {[%emt 0:04:19]} 17. f4 {[%emt 0:03:49]} Kf8 {[%emt 0:09:06]} 18. e5 {[%emt 0:08:48]} dxe5 {[%emt 0:07:02]} 19. fxe5 {[%emt 0:00:02]} Bd7 {[%emt 0:06:48]} 20. c5 {[%emt 0:07:28]} Na4 {[%emt 0:00:07]} 21. Nxa4 {[%emt 0:07:30]} Bxa4 {[%emt 0:00:06]} 22. b5 {[%emt 0:01:09]} a6 {[%emt 0:19:57]} 23. Bf3 {[%emt 0:07:48]} Rab8 {[%emt 0:01:43]} 24. c6 {[%emt 0:02:44]} bxc6 {[%emt 0:00:27]} 25. bxc6 {[%emt 0:00:11]} Rb2 {[%emt 0:15:26]} 26. Rc5 {[%emt 0:07:22]} Rc7 {[%emt 0:12:00]} 27. a3 {[%emt 0:06:32]} e6 {[%emt 0:01:37]} 28. Rac1 {[%emt 0:01:16]} Ke7 {[%emt 0:01:26]} 29. Ra5 {[%emt 0:04:25]} Bb5 {[%emt 0:00:10]} 30. a4 {[%emt 0:00:06]} Be2 {[%emt 0:12:36]} 31. Bxe2 {[%emt 0:03:23]} Rxe2 {[%emt 0:00:02]} 32. Rcc5 {[%emt 0:00:01]} Rd2 {[%emt 0:03:15]} 33. Rxa6 {[%emt 0:00:44]} Rd5 {[%emt 0:00:04]} 34. Rb5 {[%emt 0:05:20]} Rd1+ {[%emt 0:01:26]} 35. Kf2 {[%emt 0:00:00]} Rc1 {[%emt 0:00:05]} 36. Ke3 {[%emt 0:00:38]} R1xc6 {[%emt 0:01:01]} 37. Rxc6 {[%emt 0:00:01]} Rxc6 {[%emt 0:00:05]} 38. Rb7+ {[%emt 0:00:01]} Kf8 {[%emt 0:00:45]} 39. Kd3 {[%emt 0:02:54]} Ra6 {[%emt 0:00:45]} 40. Rb4 {[%emt 0:00:00]} Ra5 {[%emt 0:00:00]} 41. Re4 {[%emt 0:00:04]} Ke7 {[%emt 0:15:06]} 42. Kc3 {[%emt 0:00:51]} Rc5+ {[%emt 0:04:44]} 43. Kb3 {[%emt 0:01:21]} h5 {[%emt 0:01:38]} 44. Re2 {[%emt 0:10:13]} Kd7 {[%emt 0:02:31]} 45. Rd2+ {[%emt 0:02:02]} Ke7 {[%emt 0:05:59]} 46. Ra2 {[%emt 0:05:17]} Rxe5 {[%emt 0:03:00]} 47. a5 {[%emt 0:00:03]} Rb5+ {[%emt 0:00:59]} 48. Kc4 {[%emt 0:00:05]} Rb8 {[%emt 0:00:18]} 49. a6 {[%emt 0:00:03]} f5 {[%emt 0:00:47]} 50. a7 {[%emt 0:00:20]} Ra8 {[%emt 0:00:04]} 51. Kc5 {[%emt 0:00:03]} f4 {[%emt 0:00:57]} 52. Kc6 {[%emt 0:00:25]} g5 {[%emt 0:00:28]} 53. Kb7 {[%emt 0:00:48]} Rxa7+ {[%emt 0:00:27]} 54. Rxa7 {[%emt 0:00:14]} e5 {[%emt 0:00:33]} 55. Kc6+ {[%emt 0:02:03]} Ke6 {[%emt 0:00:02]} 56. Ra8 {[%emt 0:01:38]} e4 {[%emt 0:00:30]} 57. Re8+ {[%emt 0:00:34]} Kf5 {[%emt 0:00:04]} 58. Kd5 {[%emt 0:00:05]} e3 {[%emt 0:00:47]} 59. Kd4 {[%emt 0:00:34]} Kg4 {[%emt 0:00:40]} 60. Kd3 {[%emt 0:00:43]} h4 {[%emt 0:00:10]} 61. Rh8 {[%emt 0:01:14]} f3 {[%emt 0:01:01]} 62. Kxe3 {[%emt 0:00:16]} fxg2 {[%emt 0:00:06]} 63. Kf2 {[%emt 0:00:02]} Kh3 {[%emt 0:00:49]} 64. Kg1 {[%emt 0:00:05]} g4 {[%emt 0:00:07]} 65. Rg8 {[%emt 0:00:03]} 1-0

[Event "92nd St. Petersburg-ch Men 2019"]
[Site "Sankt Petersburg"]
[Date "2019.04.06"]
[Round "6.2"]
[White "Askerov, Marat"]
[Black "Golikov, Daniil"]
[Result "1/2-1/2"]
[ECO "A20"]
[WhiteElo "2318"]
[BlackElo "2298"]
[Annotator "NA"]
[PlyCount "75"]
[EventDate "2019.04.01"]
[EventType "tourn"]
[EventCountry "RUS"]
[SourceTitle "playchess.com"]
[Source "ChessBase"]
[SourceQuality "1"]
[TimeControl "40/5400+30:1800+30"]

1. c4 {[%emt 0:00:00]} e5 {[%emt 0:00:00]} 2. g3 {[%emt 0:00:00]} Nf6 {[%emt 0:00:00]} 3. Bg2 {[%emt 0:00:20]} c6 {[%emt 0:00:00]} 4. d4 {[%emt 0:00:23]} e4 {[%emt 0:00:00]} 5. Nc3 {[%emt 0:00:49]} d5 {[%emt 0:00:14]} 6. Bg5 {[%emt 0:00:49] LiveBook: 62 Games A20: English Opening: 1...e5} Bb4 {[%emt 0:00:05]} 7. cxd5 {[%emt 0:04:47]} (7. Qb3 Bxc3+ 8. Qxc3 O-O 9. f3 dxc4 10. Bxf6 Qxf6 11. fxe4 c5 12. e5 cxd4 13. exf6 dxc3 14. fxg7 {½-½ (40) McShane,L (2647)-Anand,V (2783) Germany 2018}) 7... cxd5 {[%emt 0:00:42]} 8. Rc1 {[%emt 0:00:21]} Nc6 {[%emt 0:05:45]} 9. Nh3 {[%emt 0:02:16]} h6 {[%emt 0:19:33]} 10. Bxf6 {[%emt 0:10:12]} Qxf6 {[%emt 0:00:06]} 11. Nf4 {[%emt 0:01:04]} Qd6 {[%emt 0:05:57]} 12. e3 $146 {[%emt 0:14:51]} ({Predecessor:} 12. Qb3 Be6 {1-0 (29) Teyssier,A (2235)-Ducoulombier,B (2097) ICCF email 2016}) 12... O-O {[%emt 0:02:37]} 13. O-O {[%emt 0:05:02]} Bxc3 $11 {[%emt 0:06:38]} 14. Rxc3 {[%emt 0:00:07]} g5 {[%emt 0:01:55]} 15. Ne2 {[%emt 0:02:22]} Bg4 {[%emt 0:00:44]} 16. f3 {[%emt 0:01:19]} exf3 {[%emt 0:02:06]} 17. Bxf3 {[%emt 0:00:05]} Bxf3 {[%emt 0:00:22]} 18. Rxf3 {[%emt 0:00:02]} Ne7 {[%emt 0:01:00]} 19. Nc1 {[%emt 0:09:07]} f6 {[%emt 0:00:56]} 20. Rc2 {[%emt 0:05:07]} Rac8 {[%emt 0:03:16]} 21. Rcf2 {[%emt 0:00:42]} Qe6 {[%emt 0:00:19]} 22. Nd3 {[%emt 0:00:52]} b6 {[%emt 0:01:19]} 23. Qf1 {[%emt 0:03:04]} Kg7 {[%emt 0:00:20]} 24. Ne5 {[%emt 0:01:48]} Nc6 {[%emt 0:02:03]} 25. Rf5 {[%emt 0:08:00]} Ne7 {[%emt 0:01:21]} 26. R5f3 {[%emt 0:00:16]} Nc6 {[%emt 0:00:01]} 27. Nd3 {[%emt 0:05:49]} Ne7 {[%emt 0:00:28]} 28. h3 {[%emt 0:00:43]} Ng6 {[%emt 0:01:55]} 29. Kh2 {[%emt 0:01:47]} Rc6 {[%emt 0:04:11]} 30. Nb4 {[%emt 0:03:08]} Rc4 {[%emt 0:00:19]} 31. a3 {[%emt 0:00:47]} Ne7 {[%emt 0:07:37]} 32. Nd3 {[%emt 0:01:04]} Ng6 {[%emt 0:03:49]} 33. Nb4 {[%emt 0:04:17]} Ne7 {[%emt 0:00:08]} 34. Qg2 {[%emt 0:05:21]} Nc8 {[%emt 0:09:57]} 35. Rf5 {[%emt 0:02:20]} Ne7 {[%emt 0:00:01]} 36. R5f3 {[%emt 0:00:17]} Nc8 {[%emt 0:00:06]} 37. Rf5 {[%emt 0:03:51]} Ne7 {[%emt 0:00:10]} 38. R5f3 {[%emt 0:00:05]} 1/2-1/2

[Event "92nd St. Petersburg-ch Men 2019"]
[Site "Sankt Petersburg"]
[Date "2019.04.06"]
[Round "6.3"]
[White "Schekachikhin, Maksim"]
[Black "Duzhakov, Ilya"]
[Result "1/2-1/2"]
[ECO "A22"]
[WhiteElo "2428"]
[BlackElo "2397"]
[Annotator "NA"]
[PlyCount "110"]
[EventDate "2019.04.01"]
[EventType "tourn"]
[EventCountry "RUS"]
[SourceTitle "playchess.com"]
[Source "ChessBase"]
[SourceQuality "1"]
[TimeControl "40/5400+30:1800+30"]

1. c4 {[%emt 0:00:00]} Nf6 {[%emt 0:02:51]} 2. Nc3 {[%emt 0:00:04]} e5 {[%emt 0:08:01]} 3. e3 {[%emt 0:00:45]} Bb4 {[%emt 0:06:05]} 4. Nge2 {[%emt 0:04:59]} c6 {[%emt 0:05:09]} 5. a3 {[%emt 0:02:34]} Ba5 {[%emt 0:00:20]} 6. b4 {[%emt 0:03:59]} Bc7 {[%emt 0:00:28]} 7. Bb2 {[%emt 0:00:36]} d6 {[%emt 0:02:31]} 8. d4 {[%emt 0:06:26]} O-O {[%emt 0:06:50]} 9. Ng3 {[%emt 0:05:18]} a5 {[%emt 0:08:02]} 10. d5 {[%emt 0:10:00]} axb4 {[%emt 0:01:09]} 11. axb4 {[%emt 0:00:06]} Rxa1 {[%emt 0:00:04]} 12. Bxa1 {[%emt 0:00:54]} Na6 {[%emt 0:06:09]} 13. Qb1 {[%emt 0:08:47]} h5 $11 {[%emt 0:08:46]} 14. Bd3 {[%emt 0:13:19]} h4 {[%emt 0:06:33]} 15. Nge4 {[%emt 0:00:38]} Nxe4 {[%emt 0:07:44]} 16. Bxe4 {[%emt 0:00:12]} f5 {[%emt 0:02:51]} 17. Bf3 {[%emt 0:01:19]} c5 {[%emt 0:03:22]} 18. b5 {[%emt 0:01:26]} Nb8 {[%emt 0:00:27]} 19. O-O {[%emt 0:05:00]} Nd7 {[%emt 0:01:35]} 20. Be2 {[%emt 0:02:16]} Qe8 {[%emt 0:05:17]} 21. Kh1 {[%emt 0:04:29]} Ba5 {[%emt 0:03:56]} 22. Qc2 {[%emt 0:02:09]} Nf6 {[%emt 0:04:39]} 23. Bb2 {[%emt 0:04:07]} Nh7 {[%emt 0:01:34]} 24. f4 {[%emt 0:02:52]} Bd8 {[%emt 0:03:32]} 25. Bd3 {[%emt 0:04:14]} e4 {[%emt 0:00:54]} 26. Be2 {[%emt 0:00:04]} g5 {[%emt 0:00:55]} 27. Nd1 {[%emt 0:01:28]} Qg6 {[%emt 0:00:40]} 28. Nf2 {[%emt 0:00:42]} Qh6 {[%emt 0:00:42]} 29. Nh3 {[%emt 0:01:14]} g4 {[%emt 0:01:34]} 30. Nf2 {[%emt 0:04:24]} Nf6 {[%emt 0:00:40]} 31. Ra1 {[%emt 0:03:51]} g3 {[%emt 0:01:24]} 32. Nh3 {[%emt 0:00:45]} Ng4 {[%emt 0:00:05]} 33. Ra8 {[%emt 0:03:46]} Bf6 {[%emt 0:01:01]} 34. Bxf6 {[%emt 0:01:28]} Qxf6 {[%emt 0:00:27]} 35. Bxg4 {[%emt 0:00:07]} fxg4 {[%emt 0:00:03]} 36. Ng5 {[%emt 0:01:05]} Qxg5 {[%emt 0:00:18]} 37. Rxc8 {[%emt 0:00:03]} Qf6 {[%emt 0:00:16]} 38. Rxf8+ {[%emt 0:00:13]} Kxf8 {[%emt 0:00:12]} 39. Qc1 {[%emt 0:00:29]} Kf7 {[%emt 0:01:25]} 40. Qe1 {[%emt 0:00:00]} gxh2 {[%emt 0:00:00]} 41. Kxh2 {[%emt 0:02:46]} Kg6 {[%emt 0:07:40]} 42. Qb1 {[%emt 0:09:46]} Kf5 {[%emt 0:04:35]} 43. b6 {[%emt 0:03:38]} Qh8 {[%emt 0:05:15]} 44. Qd1 {[%emt 0:04:42]} h3 {[%emt 0:09:18]} 45. Kg3 {[%emt 0:06:48]} Qh5 {[%emt 0:01:41]} 46. Qa4 {[%emt 0:04:18]} hxg2 {[%emt 0:02:33]} 47. Qd7+ {[%emt 0:00:52]} Kf6 {[%emt 0:00:02]} 48. Qxd6+ {[%emt 0:00:31]} Kg7 {[%emt 0:00:33]} 49. Qd7+ {[%emt 0:00:47]} Kh6 {[%emt 0:01:03]} 50. Qe6+ {[%emt 0:00:50]} Kg7 {[%emt 0:00:04]} 51. Qe7+ {[%emt 0:00:38]} Kg8 {[%emt 0:00:36]} 52. Qe6+ {[%emt 0:01:15]} Kg7 {[%emt 0:00:15]} 53. Qd7+ {[%emt 0:00:20]} Kh6 {[%emt 0:00:19]} 54. Qd6+ {[%emt 0:00:31]} Kg7 {[%emt 0:00:23]} 55. Qc7+ {[%emt 0:00:47]} Kh6 {[%emt 0:00:19]} 1/2-1/2

[Event "92nd St. Petersburg-ch Men 2019"]
[Site "Sankt Petersburg"]
[Date "2019.04.07"]
[Round "7.1"]
[White "Lesovoi, Evgenij"]
[Black "Lobanov, Sergei"]
[Result "0-1"]
[ECO "E15"]
[WhiteElo "2305"]
[BlackElo "2528"]
[Annotator "ChessBase"]
[PlyCount "110"]
[EventDate "2019.04.01"]
[EventType "tourn"]
[EventCountry "RUS"]
[SourceTitle "playchess.com"]
[Source "ChessBase"]
[SourceQuality "1"]
[TimeControl "40/5400+30:1800+30"]

1. d4 {[%emt 0:01:49]} Nf6 {[%emt 0:06:42]} 2. Nf3 {[%emt 0:01:26]} e6 {[%emt 0:00:25]} 3. c4 {[%emt 0:01:29]} b6 {[%emt 0:00:28]} 4. g3 {[%emt 0:04:01]} Ba6 {[%emt 0:00:05]} 5. b3 {[%emt 0:00:43]} Bb4+ {[%emt 0:00:06]} 6. Bd2 {[%emt 0:00:17]} Be7 {[%emt 0:00:07]} 7. Bg2 {[%emt 0:00:15]} c6 {[%emt 0:00:06]} 8. Bc3 {[%emt 0:02:39]} d5 {[%emt 0:00:08]} 9. Nbd2 {[%emt 0:00:53]} O-O {[%emt 0:00:21]} 10. O-O {[%emt 0:01:25]} Nbd7 {[%emt 0:00:03]} 11. Qc2 {[%emt 0:05:22]} Rc8 {[%emt 0:01:13]} 12. Rfd1 {[%emt 0:21:07]} c5 {[%emt 0:01:37]} 13. dxc5 {[%emt 0:00:56]} Bxc5 {[%emt 0:05:22]} 14. Qb2 {[%emt 0:03:18]} Qe7 {[%emt 0:03:11]} 15. b4 {[%emt 0:06:54]} Bd6 {[%emt 0:02:28]} 16. cxd5 {[%emt 0:00:08]} Rxc3 {[%emt 0:04:40]} 17. Qxc3 {[%emt 0:04:20]} Nxd5 {[%emt 0:00:11]} 18. Qb3 {[%emt 0:13:47]} Bxb4 {[%emt 0:07:31]} 19. Bf1 {[%emt 0:03:18]} Nc5 {[%emt 0:10:13]} 20. Qc2 {[%emt 0:00:10]} Nc3 {[%emt 0:05:36]} 21. Re1 {[%emt 0:01:21]} Rd8 {[%emt 0:16:19]} 22. a3 {[%emt 0:01:43]} Ba5 {[%emt 0:00:00]} 23. Nb3 {[%emt 0:00:26]} Nxb3 {[%emt 0:00:36]} 24. Qxb3 {[%emt 0:00:01]} Qf6 {[%emt 0:00:44]} 25. Rac1 {[%emt 0:01:10]} h6 {[%emt 0:07:38]} 26. Rc2 {[%emt 0:01:14]} Nd1 {[%emt 0:04:48]} 27. Rxd1 {[%emt 0:10:25]} Rxd1 {[%emt 0:00:05]} 28. Rc8+ {[%emt 0:00:31]} Bxc8 {[%emt 0:01:04]} 29. Qxd1 {[%emt 0:00:05]} Qe7 {[%emt 0:02:45]} 30. Qd3 {[%emt 0:01:39]} Qd7 {[%emt 0:00:35]} 31. Qc2 {[%emt 0:01:36]} Bb7 {[%emt 0:01:07]} 32. Bg2 {[%emt 0:00:42]} Qd6 {[%emt 0:01:08]} 33. Qb3 {[%emt 0:01:58]} Bd5 {[%emt 0:04:35]} 34. Qd3 {[%emt 0:01:00]} Qc6 {[%emt 0:01:57]} 35. Qa6 {[%emt 0:01:48]} Qc4 {[%emt 0:04:53]} 36. Qxc4 {[%emt 0:06:13]} Bxc4 {[%emt 0:00:01]} 37. Ne5 {[%emt 0:00:07]} Bxe2 {[%emt 0:00:12]} 38. Nc6 {[%emt 0:00:05]} a6 {[%emt 0:09:17]} 39. Nxa5 {[%emt 0:00:08]} bxa5 {[%emt 0:00:00]} 40. f4 {[%emt 0:00:00]} Kf8 {[%emt 0:00:00]} 41. Kf2 {[%emt 0:00:38]} Bb5 {[%emt 0:00:03]} 42. Ke3 {[%emt 0:01:25]} Ke7 {[%emt 0:00:00]} 43. Kd4 {[%emt 0:01:43]} Kd6 {[%emt 0:00:09]} 44. Bb7 {[%emt 0:00:30]} f6 {[%emt 0:01:37]} 45. h4 {[%emt 0:00:46]} Bf1 {[%emt 0:00:10]} 46. Bc8 {[%emt 0:01:32]} e5+ {[%emt 0:10:14]} 47. fxe5+ {[%emt 0:01:03]} fxe5+ {[%emt 0:00:01]} 48. Ke4 {[%emt 0:01:24]} Bb5 {[%emt 0:00:53]} 49. g4 {[%emt 0:04:42]} Bc6+ {[%emt 0:05:20]} 50. Kf5 {[%emt 0:00:05]} e4 {[%emt 0:04:06]} 51. Bxa6 {[%emt 0:09:49]} Kc5 {[%emt 0:00:48]} 52. Ke5 {[%emt 0:04:05]} e3 {[%emt 0:00:21]} 53. Kf4 {[%emt 0:00:56]} Kd4 {[%emt 0:03:58]} 54. g5 {[%emt 0:01:16]} hxg5+ {[%emt 0:00:14]} 55. hxg5 {[%emt 0:00:05]} Be4 {[%emt 0:00:03] Ke5+ Kxe5} 0-1

[Event "92nd St. Petersburg-ch Men 2019"]
[Site "Sankt Petersburg"]
[Date "2019.04.07"]
[Round "7.2"]
[White "Shubin, Kirill"]
[Black "Levin, Evgeny A."]
[Result "1/2-1/2"]
[ECO "B52"]
[WhiteElo "2391"]
[BlackElo "2514"]
[Annotator "RC"]
[PlyCount "265"]
[EventDate "2019.04.01"]
[EventType "tourn"]
[EventCountry "RUS"]
[SourceTitle "playchess.com"]
[Source "ChessBase"]
[SourceQuality "1"]
[TimeControl "40/5400+30:1800+30"]

1. e4 {[%emt 0:00:00]} c5 {[%emt 0:07:52]} 2. Nf3 {[%emt 0:00:00]} d6 {[%emt 0:00:03]} 3. Bb5+ {[%emt 0:00:00]} Bd7 {[%emt 0:00:47]} 4. c4 {[%emt 0:00:00]} Nf6 {[%emt 0:00:21]} 5. Nc3 {[%emt 0:00:04]} e6 {[%emt 0:00:12]} 6. d4 {[%emt 0:00:56]} cxd4 {[%emt 0:02:12]} 7. Qxd4 {[%emt 0:01:46]} a6 {[%emt 0:14:31]} 8. Bxd7+ {[%emt 0:00:56]} Nfxd7 {[%emt 0:01:25]} 9. O-O {[%emt 0:02:28]} Nc6 {[%emt 0:00:41]} 10. Qe3 {[%emt 0:01:34]} Be7 {[%emt 0:01:08]} 11. Rd1 {[%emt 0:00:52]} O-O {[%emt 0:04:58]} 12. b3 {[%emt 0:01:45]} Qa5 {[%emt 0:07:58]} 13. Bb2 {[%emt 0:07:09]} b5 {[%emt 0:13:42]} 14. c5 {[%emt 0:13:24]} Nxc5 {[%emt 0:05:01]} 15. Nd5 {[%emt 0:06:42]} exd5 {[%emt 0:12:55]} 16. exd5 {[%emt 0:00:04]} Rfe8 {[%emt 0:03:53]} 17. dxc6 {[%emt 0:00:05]} Bf6 {[%emt 0:00:46]} 18. Qc1 {[%emt 0:00:08]} Bxb2 {[%emt 0:01:59]} 19. Qxb2 {[%emt 0:00:04]} Qc7 {[%emt 0:00:36]} 20. b4 {[%emt 0:06:11]} Ne6 {[%emt 0:03:11]} 21. Rac1 {[%emt 0:00:54]} a5 {[%emt 0:00:53]} 22. bxa5 {[%emt 0:02:18]} Rxa5 {[%emt 0:02:04]} 23. Qd2 {[%emt 0:00:58]} Ra6 {[%emt 0:06:21]} 24. Qxd6 {[%emt 0:03:10]} Qxd6 {[%emt 0:00:33]} 25. Rxd6 {[%emt 0:00:04]} Rxa2 {[%emt 0:00:05]} 26. g3 {[%emt 0:00:22]} Ra6 {[%emt 0:02:31]} 27. Ne5 {[%emt 0:03:09]} Rc8 {[%emt 0:00:59]} 28. f4 {[%emt 0:03:58]} b4 {[%emt 0:02:09]} 29. f5 {[%emt 0:00:28]} Nf8 {[%emt 0:00:28]} 30. Nd3 {[%emt 0:45:31]} b3 {[%emt 0:00:22]} 31. Nb4 {[%emt 0:00:00]} Ra4 {[%emt 0:01:23]} 32. Rd4 {[%emt 0:00:00]} Rb8 {[%emt 0:02:58]} 33. Kg2 {[%emt 0:00:00]} b2 {[%emt 0:00:34]} 34. Rb1 {[%emt 0:00:00]} Rbxb4 {[%emt 0:00:20]} 35. c7 {[%emt 0:00:00]} Rxd4 {[%emt 0:00:11]} 36. c8=Q {[%emt 0:00:00]} Rd2+ {[%emt 0:00:16]} 37. Kh3 {[%emt 0:00:00]} Ra1 {[%emt 0:00:15]} 38. Qc3 {[%emt 0:00:00]} Rxh2+ {[%emt 0:01:09]} 39. Kxh2 {[%emt 0:00:00]} Rxb1 {[%emt 0:00:08]} 40. Qc2 {[%emt 0:00:00]} Rf1 {[%emt 0:00:00]} 41. Qxb2 {[%emt 0:00:00]} Rxf5 {[%emt 0:00:21]} 42. Qb8 {[%emt 0:00:00]} h6 {[%emt 0:09:13]} 43. Kg2 {[%emt 0:00:00]} g6 {[%emt 0:03:27]} 44. Qc8 {[%emt 0:00:00]} Rb5 {[%emt 0:03:19]} 45. Qa8 {[%emt 0:00:00]} Kg7 {[%emt 0:01:55]} 46. Qa1+ {[%emt 0:00:00]} Kh7 {[%emt 0:00:41]} 47. Qa7 {[%emt 0:00:00]} Rf5 {[%emt 0:00:45]} 48. Qc7 {[%emt 0:00:00]} Ne6 {[%emt 0:00:20]} 49. Qc3 {[%emt 0:00:00]} Ng5 {[%emt 0:00:38]} 50. Qc4 {[%emt 0:00:00]} Nf3 {[%emt 0:01:09]} 51. Qb4 {[%emt 0:00:00]} Ne5 {[%emt 0:00:34]} 52. Qe4 {[%emt 0:00:00]} Nd7 {[%emt 0:02:26]} 53. Qd4 {[%emt 0:00:00]} Nf6 {[%emt 0:00:21]} 54. Qc4 {[%emt 0:00:00]} Kg7 {[%emt 0:02:18]} 55. Qd4 {[%emt 0:00:00]} Rd5 {[%emt 0:00:54]} 56. Qc3 {[%emt 0:00:00]} Rf5 {[%emt 0:00:02]} 57. Qd4 {[%emt 0:00:00]} h5 {[%emt 0:00:04]} 58. Qc3 {[%emt 0:00:00]} Kh7 {[%emt 0:00:23]} 59. Qc4 {[%emt 0:00:00]} Ng4 {[%emt 0:00:46]} 60. Qb3 {[%emt 0:00:00]} Nh6 {[%emt 0:00:25]} 61. Qc4 {[%emt 0:00:00]} Rg5 {[%emt 0:01:46]} 62. Kh3 {[%emt 0:00:00]} Rg4 {[%emt 0:00:08]} 63. Qb3 {[%emt 0:00:00]} Re4 {[%emt 0:00:49]} 64. Qd3 {[%emt 0:00:00]} Re7 {[%emt 0:00:57]} 65. Kg2 {[%emt 0:00:00]} Nf5 {[%emt 0:00:35]} 66. Qb3 {[%emt 0:00:00]} Kg8 {[%emt 0:01:41]} 67. Qb8+ {[%emt 0:00:00]} Kh7 {[%emt 0:03:45]} 68. Qb3 {[%emt 0:00:00]} Kh6 {[%emt 0:01:02]} 69. Qa2 {[%emt 0:00:00]} Rc7 {[%emt 0:00:27]} 70. Kf2 {[%emt 0:00:10]} Kg7 {[%emt 0:03:19]} 71. Qb2+ {[%emt 0:00:03]} Kh7 {[%emt 0:01:03]} 72. Qa2 {[%emt 0:00:47]} Nh6 {[%emt 0:00:31]} 73. Qb3 {[%emt 0:00:55]} Rc5 {[%emt 0:00:05]} 74. Kg2 {[%emt 0:00:16]} Re5 {[%emt 0:01:14]} 75. Qc4 {[%emt 0:00:17]} Re7 {[%emt 0:00:23]} 76. Qb3 {[%emt 0:02:04]} Kg7 {[%emt 0:00:21]} 77. Qc3+ {[%emt 0:00:04]} f6 {[%emt 0:00:05]} 78. Qc5 {[%emt 0:00:23]} Nf5 {[%emt 0:00:10]} 79. Kf2 {[%emt 0:00:16]} Rd7 {[%emt 0:00:35]} 80. Qc3 {[%emt 0:00:28]} Nh6 {[%emt 0:01:04]} 81. Kg2 {[%emt 0:00:41]} Ng4 {[%emt 0:00:05]} 82. Qa5 {[%emt 0:00:43]} Ne5 {[%emt 0:00:37]} 83. Qc3 {[%emt 0:00:20]} g5 {[%emt 0:00:14]} 84. Qb3 {[%emt 0:01:05]} Rd2+ {[%emt 0:00:19]} 85. Kf1 {[%emt 0:00:17]} Rd3 {[%emt 0:01:19]} 86. Qb7+ {[%emt 0:00:04]} Rd7 {[%emt 0:00:15]} 87. Qe4 {[%emt 0:00:20]} Ng4 {[%emt 0:00:35]} 88. Qe8 {[%emt 0:00:30]} Rf7 {[%emt 0:00:26]} 89. Kg2 {[%emt 0:00:38]} f5 {[%emt 0:00:13]} 90. Qd8 {[%emt 0:00:10]} Nf6 {[%emt 0:00:04]} 91. Qd2 {[%emt 0:00:34]} Kg6 {[%emt 0:00:01]} 92. Qd6 {[%emt 0:00:08]} Rd7 {[%emt 0:00:05]} 93. Qe6 {[%emt 0:00:10]} Rd2+ {[%emt 0:00:03]} 94. Kf1 {[%emt 0:00:12]} Rd4 {[%emt 0:00:29]} 95. Kf2 {[%emt 0:00:22]} Rd2+ {[%emt 0:01:34]} 96. Kf1 {[%emt 0:00:05]} Rd3 {[%emt 0:00:24]} 97. Kg2 {[%emt 0:00:07]} Rd4 {[%emt 0:00:05]} 98. Qb6 {[%emt 0:00:16]} Rg4 {[%emt 0:00:11]} 99. Kf3 {[%emt 0:00:20]} Ra4 {[%emt 0:00:05]} 100. Kg2 {[%emt 0:00:07]} Rc4 {[%emt 0:00:04]} 101. Qe6 {[%emt 0:00:04]} Rg4 {[%emt 0:00:04]} 102. Kf3 {[%emt 0:00:03]} h4 {[%emt 0:00:10]} 103. gxh4 {[%emt 0:00:04]} Rf4+ {[%emt 0:00:08]} 104. Kg3 {[%emt 0:00:04]} Rg4+ {[%emt 0:00:04]} 105. Kf3 {[%emt 0:00:04]} Rxh4 {[%emt 0:00:04]} 106. Qc6 {[%emt 0:00:14]} Rh3+ {[%emt 0:00:22]} 107. Kg2 {[%emt 0:00:03]} g4 {[%emt 0:00:36]} 108. Qb6 {[%emt 0:00:19]} Rd3 {[%emt 0:00:37]} 109. Qb1 {[%emt 0:00:11]} Rd2+ {[%emt 0:00:16]} 110. Kg1 {[%emt 0:00:09]} Re2 {[%emt 0:01:11]} 111. Qd3 {[%emt 0:00:15]} Re4 {[%emt 0:00:19]} 112. Kg2 {[%emt 0:00:12]} f4 {[%emt 0:00:31]} 113. Qc2 {[%emt 0:00:08]} Kf5 {[%emt 0:01:37]} 114. Kf2 {[%emt 0:00:36]} Kg5 {[%emt 0:01:50]} 115. Qc5+ {[%emt 0:00:02]} Kg6 {[%emt 0:00:31]} 116. Qc2 {[%emt 0:00:04]} Kf5 {[%emt 0:01:12]} 117. Kg2 {[%emt 0:00:07]} Nd5 {[%emt 0:00:19]} 118. Qb1 {[%emt 0:00:14]} Ne3+ {[%emt 0:00:26]} 119. Kf2 {[%emt 0:00:06]} Nc4 {[%emt 0:00:15]} 120. Kg2 {[%emt 0:00:33]} Ke5 {[%emt 0:01:17]} 121. Qb5+ {[%emt 0:00:05]} Kd6 {[%emt 0:00:41]} 122. Kf2 {[%emt 0:00:34]} g3+ {[%emt 0:00:44]} 123. Kf3 {[%emt 0:00:10]} Nd2+ {[%emt 0:00:07]} 124. Kg2 {[%emt 0:00:08]} Rd4 {[%emt 0:00:48]} 125. Qb6+ {[%emt 0:00:35]} Ke5 {[%emt 0:00:37]} 126. Qb5+ {[%emt 0:01:01]} Rd5 {[%emt 0:00:32]} 127. Qe8+ {[%emt 0:00:27]} Kd4 {[%emt 0:00:11]} 128. Qf7 {[%emt 0:00:57]} Ke4 {[%emt 0:00:46]} 129. Qg6+ {[%emt 0:00:48]} Kd4 {[%emt 0:01:26]} 130. Qf6+ {[%emt 0:00:17]} Re5 {[%emt 0:01:12]} 131. Qxf4+ {[%emt 0:00:07]} Ne4 {[%emt 0:00:05]} 132. Qc1 {[%emt 0:00:21]} Rf5 {[%emt 0:01:07]} 133. Qb2+ {[%emt 0:00:11]} 1/2-1/2